[Event "12ème open de Salon"]
[Site "Salon de Provence, France"]
[Date "2022.07.13"]
[Round "7.7"]
[White "Frailinu, Jean-Bernard"]
[Black "Piquemal, Jean-Christophe"]
[Result "1-0"]
[TimeControl "1 h 30 min + 30 s"]
[WhiteElo "1349"]
[BlackElo "1164"]

1. c4 {[%clk 01:30:52]} {[%emt 00:00:07]} Nf6 {[%clk 01:30:30]} {[%emt
00:00:30]} 2. Nf3 {[%clk 01:31:08]} {[%emt 00:00:14]} Nc6 {[%clk 01:30:36]}
{[%emt 00:00:24]} 3. Nc3 {[%clk 01:31:23]} {[%emt 00:00:15]} d5 {[%clk
01:30:25]} {[%emt 00:00:40]} 4. cxd5 {[%clk 01:31:43]} {[%emt 00:00:11]} Nxd5
{[%clk 01:30:42]} {[%emt 00:00:13]} 5. g3 {[%clk 01:32:01]} {[%emt 00:00:13]}
Bf5 {[%clk 01:28:46]} {[%emt 00:02:22]} 6. d3 {[%clk 01:31:00]} {[%emt
00:01:34]} Bg6 {[%clk 01:26:09]} {[%emt 00:03:08]} 7. Bd2 {[%clk 01:30:58]}
{[%emt 00:00:30]} e6 {[%clk 01:26:07]} {[%emt 00:00:33]} 8. Bg2 {[%clk
01:31:02]} {[%emt 00:00:26]} Bb4 {[%clk 01:22:45]} {[%emt 00:03:52]} 9. a3
{[%clk 01:30:27]} {[%emt 00:01:05]} Ba5 {[%clk 01:18:57]} {[%emt 00:04:18]} 10.
b4 {[%clk 01:30:26]} {[%emt 00:00:30]} Bb6 {[%clk 01:19:07]} {[%emt 00:00:20]}
11. Na4 {[%clk 01:30:37]} {[%emt 00:00:19]} O-O {[%clk 01:13:54]} {[%emt
00:05:43]} 12. Nxb6 {[%clk 01:30:54]} {[%emt 00:00:14]} Nxb6 {[%clk 01:13:18]}
{[%emt 00:01:03]} 13. O-O {[%clk 01:29:57]} {[%emt 00:01:30]} a5 {[%clk
01:10:35]} {[%emt 00:03:12]} 14. b5 {[%clk 01:29:55]} {[%emt 00:00:32]} Ne7
{[%clk 01:01:41]} {[%emt 00:09:24]} 15. a4 {[%clk 01:29:13]} {[%emt 00:01:12]}
c6 {[%clk 01:01:43]} {[%emt 00:00:28]} 16. Qb3 {[%clk 01:28:19]} {[%emt
00:01:23]} Qd5 {[%clk 01:00:14]} {[%emt 00:02:00]} 17. Qb2 {[%clk 01:27:49]}
{[%emt 00:00:58]} h6 {[%clk 00:57:06]} {[%emt 00:03:40]} 18. Ne5 {[%clk
01:26:53]} {[%emt 00:01:26]} Qd8 {[%clk 00:56:17]} {[%emt 00:01:19]} 19. Nxg6
{[%clk 01:27:08]} {[%emt 00:00:15]} fxg6 {[%clk 00:54:54]} {[%emt 00:01:53]} 20.
Be3 {[%clk 01:26:27]} {[%emt 00:01:11]} Nbd5 {[%clk 00:54:48]} {[%emt
00:00:36]} 21. Bd2 {[%clk 01:23:32]} {[%emt 00:03:24]} g5 {[%clk 00:52:47]}
{[%emt 00:02:33]} 22. Bh3 {[%clk 01:22:39]} {[%emt 00:01:22]} Nf5 {[%clk
00:51:19]} {[%emt 00:01:59]} 23. e4 {[%clk 01:22:37]} {[%emt 00:00:31]} Nxg3
{[%clk 00:48:41]} {[%emt 00:03:09]} 24. fxg3 {[%clk 01:22:07]} {[%emt
00:01:00]} Nc7 {[%clk 00:46:44]} {[%emt 00:02:27]} 25. Qb3 {[%clk 01:21:05]}
{[%emt 00:01:31]} Qd6 {[%clk 00:45:47]} {[%emt 00:01:19]} 26. Rxf8+ {[%clk
01:20:34]} {[%emt 00:01:09]} Rxf8 {[%clk 00:45:57]} {[%emt 00:00:21]} 27. Be3
{[%clk 01:18:41]} {[%emt 00:02:23]} Rf3 {[%clk 00:44:30]} {[%emt 00:01:58]} 28.
Re1 {[%clk 01:17:48]} {[%emt 00:01:22]} Kh7 {[%clk 00:40:13]} {[%emt 00:04:47]}
29. Bg2 {[%clk 01:17:24]} {[%emt 00:00:54]} Rf7 {[%clk 00:39:04]} {[%emt
00:01:39]} 30. Rf1 {[%clk 01:17:35]} {[%emt 00:00:20]} Rd7 {[%clk 00:37:06]}
{[%emt 00:02:26]} 31. d4 {[%clk 01:15:44]} {[%emt 00:02:22]} g4 {[%clk
00:32:31]} {[%emt 00:05:06]} 32. e5 {[%clk 01:11:40]} {[%emt 00:04:33]} Qe7
{[%clk 00:30:36]} {[%emt 00:02:25]} 33. bxc6 {[%clk 01:11:51]} {[%emt
00:00:19]} bxc6 {[%clk 00:30:00]} {[%emt 00:01:06]} 34. Bxc6 {[%emt 00:00:22]}
Rd8 {[%emt 00:00:18]} 35. Be4+ {[%clk 01:11:06]} {[%emt 00:00:35]} g6 {[%clk
00:30:03]} {[%emt 00:00:27]} 36. Rf6 {[%clk 01:10:09]} {[%emt 00:01:26]} Rg8
{[%clk 00:28:20]} {[%emt 00:02:12]} 37. Qd1 {[%clk 01:10:16]} {[%emt 00:00:24]}
h5 {[%clk 00:28:10]} {[%emt 00:00:39]} 38. Qf1 {[%clk 01:10:10]} {[%emt
00:00:37]} Rg7 {[%clk 00:27:05]} {[%emt 00:01:35]} 39. Bxg6+ {[%clk 01:09:30]}
{[%emt 00:01:11]} Rxg6 {[%clk 00:25:52]} {[%emt 00:01:43]} 40. Rf7+ {[%clk
01:09:49]} {[%emt 00:00:11]} Rg7 {[%clk 00:22:15]} {[%emt 00:04:07]} 41. Rxe7
{[%clk 01:09:54]} {[%emt 00:00:25]} Nd5 {[%clk 00:22:12]} {[%emt 00:00:33]} 42.
Rxg7+ {[%clk 01:09:53]} {[%emt 00:00:31]} Kxg7 {[%emt 00:00:54]} 1-0

[Event "12ème open de Salon"]
[Site "Salon de Provence, France"]
[Date "2022.07.14"]
[Round "8.1"]
[White "Lalic, Bogdan"]
[Black "Figier, Anthony"]
[Result "1-0"]
[TimeControl "1 h 30 min + 30 s"]
[WhiteElo "2412"]
[BlackElo "1977"]

1. c4 {[%clk 01:30:57]} {[%emt 00:00:02]} c6 {[%clk 01:30:03]} {[%emt
00:00:58]} 2. e4 {[%clk 01:31:18]} {[%emt 00:00:09]} d6 {[%clk 01:26:02]}
{[%emt 00:04:32]} 3. d4 {[%clk 01:31:17]} {[%emt 00:00:30]} e5 {[%clk
01:26:07]} {[%emt 00:00:26]} 4. Nf3 {[%clk 01:31:25]} {[%emt 00:00:21]} Nd7
{[%clk 01:25:20]} {[%emt 00:01:17]} 5. Nc3 {[%clk 01:31:28]} {[%emt 00:00:26]}
Ngf6 {[%emt 00:00:11]} 6. Be2 {[%clk 01:31:49]} {[%emt 00:00:08]} Be7 {[%clk
01:26:05]} {[%emt 00:00:06]} 7. O-O {[%clk 01:32:12]} {[%emt 00:00:07]} O-O
{[%clk 01:26:27]} {[%emt 00:00:08]} 8. Be3 {[%clk 01:32:09]} {[%emt 00:00:32]}
Qc7 {[%clk 01:26:33]} {[%emt 00:00:24]} 9. d5 {[%clk 01:31:36]} {[%emt
00:01:03]} c5 {[%clk 01:22:11]} {[%emt 00:04:52]} 10. Ne1 {[%clk 01:30:28]}
{[%emt 00:01:37]} Re8 {[%clk 01:18:12]} {[%emt 00:04:30]} 11. a3 {[%clk
01:30:12]} {[%emt 00:00:44]} Bf8 {[%clk 01:17:27]} {[%emt 00:01:17]} 12. b4
{[%clk 01:29:45]} {[%emt 00:00:57]} b6 {[%clk 01:14:04]} {[%emt 00:03:53]} 13.
Qb3 {[%clk 01:25:27]} {[%emt 00:04:48]} g6 {[%clk 01:05:05]} {[%emt 00:09:30]}
14. Nd3 {[%clk 01:24:35]} {[%emt 00:01:21]} Qd8 {[%clk 01:02:10]} {[%emt
00:03:26]} 15. Rab1 {[%clk 01:19:30]} {[%emt 00:05:33]} Bg7 {[%clk 00:52:01]}
{[%emt 00:10:41]} 16. Qa4 {[%clk 01:14:59]} {[%emt 00:05:00]} Nb8 {[%clk
00:44:02]} {[%emt 00:08:29]} 17. bxc5 {[%clk 01:15:05]} {[%emt 00:00:25]} dxc5
{[%clk 00:43:37]} {[%emt 00:00:55]} 18. Qb3 {[%clk 01:12:36]} {[%emt 00:02:59]}
Nbd7 {[%clk 00:39:02]} {[%emt 00:05:05]} 19. Qa2 {[%clk 01:10:26]} {[%emt
00:02:40]} Rf8 {[%clk 00:38:32]} {[%emt 00:01:01]} 20. Bd1 {[%clk 01:10:48]}
{[%emt 00:00:07]} Ne8 {[%clk 00:37:53]} {[%emt 00:01:10]} 21. Ba4 {[%clk
01:11:05]} {[%emt 00:00:13]} Nd6 {[%clk 00:38:03]} {[%emt 00:00:21]} 22. Bc6
{[%clk 01:10:48]} {[%emt 00:00:46]} Ba6 {[%clk 00:36:05]} {[%emt 00:02:27]} 23.
Nb2 {[%clk 01:11:05]} {[%emt 00:00:14]} Bb7 {[%clk 00:34:02]} {[%emt 00:02:33]}
24. Nb5 {[%clk 01:04:19]} {[%emt 00:07:16]} Nxb5 {[%clk 00:34:26]} {[%emt
00:00:07]} 25. cxb5 {[%clk 01:04:38]} {[%emt 00:00:11]} Qc7 {[%clk 00:34:02]}
{[%emt 00:00:53]} 26. Nc4 {[%clk 01:04:52]} {[%emt 00:00:16]} Nf6 {[%clk
00:32:54]} {[%emt 00:01:39]} 27. f3 {[%clk 01:03:57]} {[%emt 00:01:25]} Bxc6
{[%clk 00:32:33]} {[%emt 00:00:50]} 28. bxc6 {[%clk 01:03:57]} {[%emt
00:00:30]} Rab8 {[%clk 00:29:14]} {[%emt 00:03:49]} 29. a4 {[%clk 01:04:18]}
{[%emt 00:00:10]} Rfd8 {[%clk 00:28:17]} {[%emt 00:01:27]} 30. Na3 {[%clk
01:03:32]} {[%emt 00:01:15]} Ne8 {[%clk 00:25:01]} {[%emt 00:03:46]} 31. Bg5
{[%clk 01:00:49]} {[%emt 00:03:13]} f6 {[%clk 00:22:47]} {[%emt 00:02:45]} 32.
d6+ {[%clk 01:00:47]} {[%emt 00:00:31]} Qf7 {[%clk 00:23:13]} {[%emt 00:00:04]}
33. Qxf7+ {[%clk 01:01:12]} {[%emt 00:00:06]} Kxf7 {[%clk 00:23:37]} {[%emt
00:00:06]} 34. c7 {[%clk 01:01:38]} {[%emt 00:00:04]} fxg5 {[%clk 00:23:58]}
{[%emt 00:00:08]} 35. cxb8=Q {[%clk 01:01:57]} {[%emt 00:00:10]} Rxb8 {[%clk
00:24:13]} {[%emt 00:00:15]} 36. Rfd1 {[%clk 01:02:23]} {[%emt 00:00:04]} Rd8
{[%clk 00:24:30]} {[%emt 00:00:13]} 37. Nb5 {[%clk 01:01:56]} {[%emt 00:00:57]}
c4 {[%clk 00:20:12]} {[%emt 00:04:48]} 38. d7 {[%clk 01:00:48]} {[%emt
00:01:38]} Nf6 {[%clk 00:19:54]} {[%emt 00:00:48]} 39. Nxa7 {[%clk 01:01:06]}
{[%emt 00:00:11]} Rxd7 {[%clk 00:19:35]} {[%emt 00:00:50]} 40. Rxd7+ {[%clk
01:01:30]} {[%emt 00:00:06]} Nxd7 {[%clk 00:20:01]} {[%emt 00:00:04]} 41. Rc1
{[%clk 01:01:49]} {[%emt 00:00:11]} Bf8 {[%clk 00:20:10]} {[%emt 00:00:21]} 42.
Rxc4 {[%clk 01:02:11]} {[%emt 00:00:08]} Bc5+ {[%clk 00:20:09]} {[%emt
00:00:31]} 43. Kf1 {[%clk 01:02:36]} {[%emt 00:00:05]} Ke6 {[%clk 00:20:16]}
{[%emt 00:00:23]} 44. Nb5 {[%clk 01:02:58]} {[%emt 00:00:07]} Be3 {[%clk
00:18:16]} {[%emt 00:02:30]} 45. Rc6+ {[%clk 01:01:56]} {[%emt 00:01:32]} Ke7
{[%emt 00:00:13]} 46. Nc3 {[%clk 01:01:27]} {[%emt 00:00:57]} Bd4 {[%clk
00:18:52]} {[%emt 00:00:13]} 47. Nd5+ {[%clk 01:01:45]} {[%emt 00:00:12]} Kd8
{[%clk 00:19:09]} {[%emt 00:00:14]} 48. h3 {[%clk 00:57:28]} {[%emt 00:04:48]}
Ke8 {[%clk 00:15:11]} {[%emt 00:04:28]} 49. Re6+ {[%clk 00:56:21]} {[%emt
00:01:36]} Kf8 {[%clk 00:14:21]} {[%emt 00:01:20]} 50. Re7 {[%clk 00:56:24]}
{[%emt 00:00:27]} Nc5 {[%clk 00:14:37]} {[%emt 00:00:15]} 51. Rxh7 {[%clk
00:56:48]} {[%emt 00:00:05]} Nxa4 {[%clk 00:15:00]} {[%emt 00:00:08]} 52. Rb7
{[%clk 00:56:59]} {[%emt 00:00:18]} Bc5 {[%clk 00:14:03]} {[%emt 00:01:27]} 53.
Nf6 {[%clk 00:56:48]} {[%emt 00:00:41]} Be7 {[%clk 00:12:20]} {[%emt 00:02:14]}
54. Nd7+ {[%clk 00:57:03]} {[%emt 00:00:14]} 1-0

[Event "12ème open de Salon"]
[Site "Salon de Provence, France"]
[Date "2022.07.14"]
[Round "8.2"]
[White "Charvein, Gabriel"]
[Black "Mounier, Victor"]
[Result "1-0"]
[TimeControl "1 h 30 min + 30 s"]
[WhiteElo "2078"]
[BlackElo "1888"]

1. e4 {[%clk 01:30:59]} {[%emt 00:00:01]} e6 {[%clk 01:30:46]} {[%emt
00:00:14]} 2. d4 {[%clk 01:31:18]} {[%emt 00:00:11]} d5 {[%clk 01:31:05]}
{[%emt 00:00:11]} 3. Nd2 {[%clk 01:31:43]} {[%emt 00:00:05]} c5 {[%clk
01:30:56]} {[%emt 00:00:39]} 4. Ngf3 {[%clk 01:32:06]} {[%emt 00:00:08]} cxd4
{[%clk 01:29:55]} {[%emt 00:01:32]} 5. exd5 {[%clk 01:32:30]} {[%emt 00:00:06]}
Qxd5 {[%clk 01:28:49]} {[%emt 00:01:35]} 6. Bc4 {[%clk 01:32:54]} {[%emt
00:00:07]} Qd6 {[%clk 01:28:13]} {[%emt 00:01:05]} 7. O-O {[%clk 01:33:15]}
{[%emt 00:00:09]} Nf6 {[%clk 01:28:36]} {[%emt 00:00:07]} 8. Re1 {[%clk
01:33:02]} {[%emt 00:00:43]} Be7 {[%clk 01:26:55]} {[%emt 00:02:11]} 9. Ne4
{[%clk 01:28:54]} {[%emt 00:04:37]} Nxe4 {[%clk 01:27:03]} {[%emt 00:00:23]} 10.
Rxe4 {[%clk 01:29:19]} {[%emt 00:00:05]} Nc6 {[%clk 01:27:20]} {[%emt
00:00:13]} 11. Nxd4 {[%clk 01:22:02]} {[%emt 00:07:47]} O-O {[%clk 01:25:19]}
{[%emt 00:02:31]} 12. Bf4 {[%clk 01:19:24]} {[%emt 00:03:08]} Qc5 {[%clk
01:24:07]} {[%emt 00:01:41]} 13. Nb3 {[%clk 01:13:21]} {[%emt 00:06:34]} Qb6
{[%clk 01:19:46]} {[%emt 00:04:51]} 14. Qf3 {[%clk 01:11:38]} {[%emt 00:02:14]}
a5 {[%clk 01:14:59]} {[%emt 00:05:16]} 15. Qg3 {[%clk 01:06:00]} {[%emt
00:06:08]} a4 {[%clk 01:09:47]} {[%emt 00:05:43]} 16. Bc7 {[%clk 01:02:28]}
{[%emt 00:04:02]} Qa7 {[%clk 01:06:52]} {[%emt 00:03:25]} 17. Nd2 {[%clk
01:01:26]} {[%emt 00:01:31]} Bf6 {[%clk 00:59:33]} {[%emt 00:07:48]} 18. Bd3
{[%clk 00:54:04]} {[%emt 00:07:53]} Ne7 {[%clk 00:56:45]} {[%emt 00:03:18]} 19.
Be5 {[%clk 00:47:59]} {[%emt 00:06:35]} Nf5 {[%clk 00:48:52]} {[%emt 00:08:23]}
20. Qh3 {[%clk 00:45:09]} {[%emt 00:03:21]} Bxe5 {[%clk 00:48:11]} {[%emt
00:01:10]} 21. Rxe5 {[%clk 00:45:34]} {[%emt 00:00:06]} Qd4 {[%clk 00:48:19]}
{[%emt 00:00:22]} 22. Rae1 {[%clk 00:41:45]} {[%emt 00:04:19]} Qxb2 {[%clk
00:39:25]} {[%emt 00:09:24]} 23. Nc4 {[%clk 00:30:27]} {[%emt 00:11:48]} Qd4
{[%clk 00:37:45]} {[%emt 00:02:10]} 24. c3 {[%clk 00:26:55]} {[%emt 00:04:03]}
Qd8 {[%clk 00:36:55]} {[%emt 00:01:19]} 25. g4 {[%clk 00:18:45]} {[%emt
00:08:40]} Qh4 {[%clk 00:27:30]} {[%emt 00:09:54]} 26. Qf3 {[%clk 00:16:14]}
{[%emt 00:03:01]} Nh6 {[%clk 00:27:40]} {[%emt 00:00:21]} 27. h3 {[%clk
00:12:00]} {[%emt 00:04:44]} f5 {[%clk 00:23:43]} {[%emt 00:04:26]} 28. Nb6
{[%clk 00:12:26]} {[%emt 00:00:05]} Rb8 {[%clk 00:20:44]} {[%emt 00:03:28]} 29.
R1e3 {[%clk 00:07:55]} {[%emt 00:05:02]} Nf7 {[%clk 00:19:32]} {[%emt
00:01:42]} 30. Rc5 {[%clk 00:07:16]} {[%emt 00:01:09]} fxg4 {[%clk 00:13:18]}
{[%emt 00:06:44]} 31. Qxg4 {[%clk 00:05:11]} {[%emt 00:02:36]} Qe7 {[%clk
00:11:57]} {[%emt 00:01:50]} 32. Rh5 {[%clk 00:05:17]} {[%emt 00:00:25]} h6
{[%clk 00:08:43]} {[%emt 00:03:44]} 33. Qg6 {[%clk 00:04:09]} {[%emt 00:01:38]}
Ng5 {[%clk 00:04:39]} {[%emt 00:04:34]} 34. Rxh6 {[%clk 00:04:19]} {[%emt
00:00:20]} Qf6 {[%clk 00:04:54]} {[%emt 00:00:15]} 35. Qxf6 {[%clk 00:04:24]}
{[%emt 00:00:25]} Rxf6 {[%clk 00:04:06]} {[%emt 00:01:18]} 36. Rh5 {[%clk
00:04:42]} {[%emt 00:00:12]} Nf7 {[%clk 00:03:05]} {[%emt 00:01:31]} 37. Rc5
{[%clk 00:04:40]} {[%emt 00:00:32]} Nd6 {[%clk 00:02:58]} {[%emt 00:00:37]} 38.
Bc2 {[%clk 00:04:58]} {[%emt 00:00:12]} e5 {[%clk 00:03:13]} {[%emt 00:00:15]}
39. Nxc8 {[%clk 00:05:05]} {[%emt 00:00:23]} Rxc8 {[%clk 00:02:36]} {[%emt
00:01:07]} 40. Rxc8+ {[%clk 00:05:15]} {[%emt 00:00:20]} Nxc8 {[%clk 00:03:05]}
{[%emt 00:00:01]} 41. Rxe5 {[%clk 00:05:38]} {[%emt 00:00:08]} Nb6 {[%clk
00:02:48]} {[%emt 00:00:46]} 42. Re8+ {[%clk 00:05:10]} {[%emt 00:00:58]} Rf8
{[%clk 00:01:54]} {[%emt 00:01:24]} 43. Rxf8+ {[%clk 00:04:52]} {[%emt
00:00:48]} Kxf8 {[%clk 00:02:23]} {[%emt 00:00:01]} 44. Be4 {[%clk 00:05:14]}
{[%emt 00:00:08]} Nc4 {[%clk 00:02:05]} {[%emt 00:00:47]} 45. Bxb7 {[%clk
00:05:31]} {[%emt 00:00:13]} Ke7 {[%clk 00:02:03]} {[%emt 00:00:32]} 46. Kg2
{[%clk 00:04:46]} {[%emt 00:01:15]} Kd6 {[%clk 00:02:16]} {[%emt 00:00:17]} 47.
Kg3 {[%clk 00:05:02]} {[%emt 00:00:14]} a3 {[%clk 00:01:41]} {[%emt 00:01:04]}
48. Ba6 {[%clk 00:03:46]} {[%emt 00:01:46]} Nb6 {[%clk 00:01:23]} {[%emt
00:00:49]} 49. Kg4 {[%clk 00:02:27]} {[%emt 00:01:50]} Nd5 {[%clk 00:01:24]}
{[%emt 00:00:28]} 50. Kf5 {[%clk 00:01:54]} {[%emt 00:01:04]} Ke7 {[%clk
00:01:26]} {[%emt 00:00:29]} 51. Bc4 {[%clk 00:00:56]} {[%emt 00:01:28]} Nxc3
{[%clk 00:01:45]} {[%emt 00:00:10]} 52. h4 {[%clk 00:01:07]} {[%emt 00:00:19]}
Nd1 {[%clk 00:01:53]} {[%emt 00:00:22]} 53. Kg6 {[%clk 00:01:19]} {[%emt
00:00:19]} Kf8 {[%clk 00:02:05]} {[%emt 00:00:18]} 54. f3 {[%clk 00:01:09]}
{[%emt 00:00:40]} Nf2 {[%clk 00:02:05]} {[%emt 00:00:30]} 55. f4 {[%clk
00:01:14]} {[%emt 00:00:25]} Ng4 {[%clk 00:01:59]} {[%emt 00:00:36]} 56. h5
{[%clk 00:01:26]} {[%emt 00:00:18]} Ne3 {[%clk 00:01:49]} {[%emt 00:00:40]} 57.
Bb3 {[%clk 00:01:00]} {[%emt 00:00:55]} Ng2 {[%clk 00:01:52]} {[%emt 00:00:27]}
58. f5 {[%clk 00:01:00]} {[%emt 00:00:30]} Nf4+ {[%clk 00:01:23]} {[%emt
00:00:59]} 59. Kg5 {[%clk 00:01:26]} {[%emt 00:00:05]} Nh3+ {[%clk 00:01:22]}
{[%emt 00:00:30]} 60. Kg4 {[%clk 00:01:43]} {[%emt 00:00:13]} Nf2+ {[%clk
00:01:41]} {[%emt 00:00:11]} 61. Kf4 {[%clk 00:01:53]} {[%emt 00:00:20]} Nd3+
{[%clk 00:01:11]} {[%emt 00:01:00]} 62. Kg5 {[%clk 00:02:10]} {[%emt 00:00:13]}
Nc5 {[%clk 00:00:54]} {[%emt 00:00:47]} 63. Be6 {[%clk 00:00:59]} {[%emt
00:01:41]} Ke7 {[%clk 00:00:44]} {[%emt 00:00:39]} 64. Kg6 {[%clk 00:00:56]}
{[%emt 00:00:33]} Kf8 {[%clk 00:00:56]} {[%emt 00:00:18]} 65. Bc4 {[%clk
00:01:02]} {[%emt 00:00:24]} Ne4 {[%clk 00:01:03]} {[%emt 00:00:23]} 66. Bd3
{[%clk 00:00:56]} {[%emt 00:00:36]} Nc5 {[%clk 00:00:51]} {[%emt 00:00:42]} 67.
Bb5 {[%clk 00:01:01]} {[%emt 00:00:25]} Ne4 {[%clk 00:01:10]} {[%emt 00:00:11]}
68. Ba4 {[%clk 00:00:58]} {[%emt 00:00:33]} Nc3 {[%clk 00:01:10]} {[%emt
00:00:30]} 69. Bb3 {[%clk 00:01:23]} {[%emt 00:00:06]} Ne4 {[%clk 00:01:37]}
{[%emt 00:00:02]} 70. f6 {[%clk 00:00:42]} {[%emt 00:01:11]} gxf6 {[%clk
00:00:52]} {[%emt 00:01:15]} 71. h6 {[%clk 00:01:11]} Ng5 {[%clk 00:00:42]}
{[%emt 00:00:39]} 72. Kxf6 {[%clk 00:01:32]} {[%emt 00:00:09]} Nf7 {[%clk
00:00:49]} {[%emt 00:00:24]} 73. h7 {[%clk 00:01:06]} {[%emt 00:00:56]} Nh8
{[%clk 00:01:06]} {[%emt 00:00:13]} 74. Bc4 {[%clk 00:01:25]} {[%emt 00:00:11]}
Nf7 {[%clk 00:01:23]} {[%emt 00:00:13]} 75. Be6 {[%clk 00:01:18]} {[%emt
00:00:37]} Nh8 {[%clk 00:01:39]} {[%emt 00:00:13]} 76. Bb3 {[%clk 00:01:41]}
{[%emt 00:00:08]} Nf7 {[%clk 00:02:03]} {[%emt 00:00:06]} 77. Kg6 {[%clk
00:01:49]} {[%emt 00:00:22]} Nh8+ {[%clk 00:02:00]} {[%emt 00:00:34]} 78. Kh6
{[%clk 00:02:08]} {[%emt 00:00:11]} 1-0

[Event "12ème open de Salon"]
[Site "Salon de Provence, France"]
[Date "2022.07.14"]
[Round "8.4"]
[White "Bonchristiani, Pierre"]
[Black "Tramarin, Matteo"]
[Result "0-1"]
[TimeControl "1 h 30 min + 30 s"]
[WhiteElo "1382"]
[BlackElo "1501"]

1. e4 {[%clk 01:30:49]} {[%emt 00:00:10]} Nf6 {[%clk 01:30:24]} {[%emt
00:00:36]} 2. e5 {[%clk 01:30:48]} {[%emt 00:00:31]} Nd5 {[%clk 01:30:30]}
{[%emt 00:00:24]} 3. d4 {[%clk 01:30:55]} {[%emt 00:00:22]} d6 {[%clk
01:30:25]} {[%emt 00:00:36]} 4. c4 {[%clk 01:30:51]} {[%emt 00:00:34]} Nb6
{[%clk 01:30:26]} {[%emt 00:00:29]} 5. exd6 {[%clk 01:31:01]} {[%emt 00:00:21]}
cxd6 {[%clk 01:30:31]} {[%emt 00:00:25]} 6. Nc3 {[%clk 01:29:46]} {[%emt
00:01:45]} g6 {[%clk 01:30:02]} {[%emt 00:01:00]} 7. Be3 {[%clk 01:28:02]}
{[%emt 00:02:13]} Bg7 {[%clk 01:28:45]} {[%emt 00:01:47]} 8. Rc1 {[%clk
01:26:38]} {[%emt 00:01:53]} Nc6 {[%clk 01:27:12]} {[%emt 00:02:03]} 9. b3
{[%clk 01:24:18]} {[%emt 00:02:50]} Bd7 {[%clk 01:22:58]} {[%emt 00:04:45]} 10.
d5 {[%clk 01:23:41]} {[%emt 00:01:07]} Ne5 {[%clk 01:22:26]} {[%emt 00:01:03]}
11. Be2 {[%clk 01:23:09]} {[%emt 00:01:01]} f5 {[%clk 01:21:13]} {[%emt
00:01:43]} 12. f4 {[%clk 01:22:41]} {[%emt 00:00:57]} Nf7 {[%clk 01:20:23]}
{[%emt 00:01:21]} 13. Bd4 {[%clk 01:19:17]} {[%emt 00:03:55]} O-O {[%clk
01:19:53]} {[%emt 00:01:00]} 14. h3 {[%clk 01:12:07]} {[%emt 00:07:40]} e6
{[%clk 01:16:31]} {[%emt 00:03:51]} 15. Bxg7 {[%clk 01:09:02]} {[%emt
00:03:35]} Qh4+ {[%clk 01:16:14]} {[%emt 00:00:47]} 16. Kf1 {[%clk 01:06:19]}
{[%emt 00:03:13]} Qxf4+ {[%clk 01:15:54]} {[%emt 00:00:51]} 17. Nf3 {[%clk
01:06:19]} {[%emt 00:00:31]} Kxg7 {[%clk 01:15:47]} {[%emt 00:00:36]} 18. dxe6
{[%clk 01:04:58]} {[%emt 00:01:52]} Bxe6 {[%clk 01:15:24]} {[%emt 00:00:51]} 19.
Qd4+ {[%clk 01:03:02]} {[%emt 00:02:27]} Qxd4 {[%clk 01:14:39]} {[%emt
00:01:16]} 20. Nxd4 {[%clk 01:03:19]} {[%emt 00:00:13]} Rfe8 {[%clk 01:14:44]}
{[%emt 00:00:24]} 21. Nxe6+ {[%clk 01:01:02]} {[%emt 00:02:47]} Rxe6 {[%clk
01:15:00]} {[%emt 00:00:14]} 22. Bf3 {[%clk 00:59:48]} {[%emt 00:01:45]} Re7
{[%clk 01:13:00]} {[%emt 00:02:30]} 23. Re1 {[%clk 00:50:05]} {[%emt 00:10:14]}
Rae8 {[%clk 01:12:14]} {[%emt 00:01:15]} 24. Rxe7 {[%clk 00:48:50]} {[%emt
00:01:45]} Rxe7 {[%clk 01:12:25]} {[%emt 00:00:18]} 25. Nd5 {[%clk 00:47:07]}
{[%emt 00:02:14]} Nxd5 {[%clk 01:12:29]} {[%emt 00:00:26]} 26. Bxd5 {[%clk
00:47:28]} {[%emt 00:00:10]} Ne5 {[%clk 01:12:38]} {[%emt 00:00:20]} 27. Kf2
{[%clk 00:39:19]} {[%emt 00:08:39]} b6 {[%clk 01:11:29]} {[%emt 00:01:40]} 28.
Rd1 {[%clk 00:36:56]} {[%emt 00:02:52]} Kf6 {[%clk 01:08:56]} {[%emt 00:03:04]}
29. Bg8 {[%clk 00:32:01]} {[%emt 00:05:24]} Rd7 {[%clk 01:08:21]} {[%emt
00:01:06]} 30. Bd5 {[%clk 00:28:41]} {[%emt 00:03:50]} g5 {[%clk 01:07:36]}
{[%emt 00:01:16]} 31. Ke3 {[%clk 00:20:42]} {[%emt 00:08:30]} h5 {[%clk
01:04:01]} {[%emt 00:04:04]} 32. Rf1 {[%clk 00:18:22]} {[%emt 00:02:50]} Ng6
{[%clk 01:00:30]} {[%emt 00:04:01]} 33. Be4 {[%clk 00:16:24]} {[%emt 00:02:28]}
Nf4 {[%clk 01:00:07]} {[%emt 00:00:53]} 34. g3 {[%clk 00:13:57]} {[%emt
00:02:58]} Re7 {[%clk 01:00:13]} {[%emt 00:00:24]} 35. gxf4 {[%clk 00:09:48]}
{[%emt 00:04:39]} Rxe4+ {[%clk 01:00:35]} {[%emt 00:00:07]} 36. Kd3 {[%clk
00:09:43]} {[%emt 00:00:35]} Rxf4 {[%clk 01:00:40]} {[%emt 00:00:24]} 37. Rxf4
{[%clk 00:09:19]} {[%emt 00:00:56]} gxf4 {[%clk 01:00:51]} {[%emt 00:00:18]} 38.
Ke2 {[%clk 00:07:13]} {[%emt 00:02:37]} Ke5 {[%clk 01:00:25]} {[%emt 00:00:55]}
39. Kf3 {[%clk 00:07:09]} {[%emt 00:00:34]} h4 {[%clk 00:59:47]} {[%emt
00:01:09]} 40. a3 {[%clk 00:03:33]} {[%emt 00:04:06]} a5 {[%clk 00:58:23]}
{[%emt 00:01:53]} 41. a4 {[%clk 00:03:34]} {[%emt 00:00:29]} Ke6 {[%clk
00:57:44]} {[%emt 00:01:09]} 42. Kxf4 {[%clk 00:03:13]} {[%emt 00:00:52]} Kf6
{[%clk 00:58:06]} {[%emt 00:00:07]} 43. Kf3 {[%clk 00:02:31]} {[%emt 00:01:13]}
Ke5 {[%clk 00:58:25]} {[%emt 00:00:11]} 44. Ke3 {[%clk 00:02:34]} {[%emt
00:00:27]} f4+ {[%clk 00:58:40]} {[%emt 00:00:15]} 45. Kd3 {[%clk 00:01:41]}
{[%emt 00:01:23]} d5 {[%clk 00:58:59]} {[%emt 00:00:10]} 46. cxd5 {[%clk
00:01:24]} {[%emt 00:00:48]} Kxd5 {[%clk 00:59:17]} {[%emt 00:00:11]} 47. Ke2
{[%clk 00:01:18]} {[%emt 00:00:36]} Ke4 {[%clk 00:59:35]} {[%emt 00:00:12]} 48.
Kf2 {[%clk 00:01:25]} {[%emt 00:00:24]} f3 {[%clk 00:59:25]} {[%emt 00:00:39]}
49. Kf1 {[%clk 00:01:44]} {[%emt 00:00:10]} Ke3 {[%clk 00:59:32]} {[%emt
00:00:23]} 50. Ke1 {[%clk 00:02:08]} {[%emt 00:00:07]} f2+ {[%clk 00:59:34]}
{[%emt 00:00:28]} 51. Kf1 {[%clk 00:02:35]} {[%emt 00:00:03]} Kf3 {[%clk
00:59:47]} {[%emt 00:00:17]} 52. b4 {[%clk 00:02:59]} {[%emt 00:00:05]} Kg3
{[%clk 01:00:09]} {[%emt 00:00:08]} 53. bxa5 {[%clk 00:04:33]} {[%emt
00:01:45]} bxa5 {[%clk 00:59:23]} {[%emt 00:01:06]} 54. Ke2 {[%clk 00:04:57]}
{[%emt 00:00:07]} Kg2 {[%clk 00:59:39]} {[%emt 00:00:14]} 0-1